Cogmind - Beta 17.1 @@@ ROGUE MODE // 2026.09.02 @ 21:47:36 Player: UnderDoug Result: Destroyed by 24-AER(R) with Subdweller Laser Performance ------------- Evolutions (0) 0 Regions Visited (2) 400 Robots Destroyed (33) 165 Value Destroyed (772) 772 Prototype IDs (2) 40 Alien Tech Used (0) 0 Bonus (0) 0 TOTAL SCORE: 1377 Bonus ------- None Cogmind --------- Core Integrity 0/250 Matter 149/300 Energy 100/100 System Corruption 0% Temperature Cool (12) Movement Walking (190) Ox1 Location -10/Subcaves Parts ------- > --- POWER (1) -------- (None) > --- PROPULSION (2) --- Aluminum Leg Aluminum Leg > --- UTILITY (2) ------ Large Storage Unit Structural Scanner > --- WEAPON (2) ------- Maul > --- INVENTORY (15) --- Aluminum Leg Aluminum Leg Compact Wheel Visual Processing Unit Subdweller Optics Terrain Scanner Terrain Scan Processor Scrap Shield Assault Rifle Grenade Launcher Mining Laser Peak State ------------ > --- POWER ------------ Ion Engine > --- PROPULSION ------- Aluminum Leg Aluminum Leg > --- UTILITY ---------- Medium Storage Unit Medium Armor Plating > --- WEAPON ----------- Assault Rifle Maul > --- INVENTORY -------- Ion Engine Aluminum Leg Aluminum Leg Compact Wheel Terrain Scan Processor Medium Armor Plating Medium Laser Grenade Launcher [Rating: 10] Favorites ----------- Power Light Ion Engine Engine Light Ion Engine Propulsion Aluminum Leg Leg Aluminum Leg Utility Large Storage Unit Device Structural Scanner Storage Large Storage Unit Protection Medium Armor Plating Weapon Assault Rifle Energy Gun Medium Laser Ballistic Gun Assault Rifle Ballistic Cannon Light Cannon Launcher Grenade Launcher Impact Weapon Maul Build | -11 -10 -10 ------- Run | Yrd Mat Sub Slots Evolved . | . . . Power . | . . . Propulsion . | . . . Utility . | . . . Weapon . | . . . Parts Attached 21 | 6 11 4 Power 3 | 1 1 1 Engine 3 | 1 1 1 Core . | . . . Reactor . | . . . Propulsion 5 | 2 2 1 Treads . | . . . Leg 5 | 2 2 1 Wheel . | . . . Hover . | . . . Flight . | . . . Utility 7 | 1 5 1 Device 1 | . . 1 Storage 3 | 1 2 . Processor . | . . . Hackware . | . . . Protection 3 | . 3 . Artifact . | . . . Weapon 6 | 2 3 1 Energy Gun 1 | 1 . . Energy Cannon . | . . . Ballistic Gun 2 | 1 1 . Ballistic Cannon 1 | . . 1 Launcher 1 | . 1 . Special Weapon . | . . . Impact Weapon 1 | . 1 . Slashing Weapon . | . . . Piercing Weapon . | . . . Special Melee Weapon . | . . . Unidentified Prototypes . | . . . Parts Lost 6 | . 1 5 Power 2 | . . 2 Propulsion 1 | . . 1 Utility 2 | . 1 1 Weapon 1 | . . 1 Highest Loss Streak 3 | . 1 3 To Critical Strikes . | . . . Average Backups 11 | 3 9 13 Power . | . 1 . Propulsion 3 | 3 3 4 Utility 3 | . 2 5 Weapon 2 | . 2 3 Tool/Special . | . . . Unused Backups 17 | . 5 12 Power . | . . . Propulsion 6 | . 3 3 Utility 8 | . 1 7 Weapon 3 | . 1 2 Tool/Special . | . . . Average Slot Usage (%) 99 | . 99 99 Engine 13 | . 14 13 Leg 27 | . 28 27 Device 4 | . . 8 Storage 14 | . 14 14 Protection 9 | . 13 4 Ballistic Gun 13 | . 14 12 Launcher 12 | . 12 12 Peak Build Rating 10 | 6 10 10 Average Rating 8 | 4 8 9 On Entrance 5 | . 6 9 Avg Prop Armor Cover (%) . | . . . Naked Turns . | . . . Heaviest Build 35 | 14 35 35 Greatest Support 20 | 20 20 20 Greatest Overweight (x) 3 | 2 1 3 Average Overweight (x) . | . . 1 Largest Inventory Capacity 15 | 8 15 15 Average Capacity 13 | 6 12 15 Most Carried 15 | 6 15 15 Average Carried 11 | 4 9 14 Final Capacity 15 | 8 15 15 Final Carried 15 | 6 15 12 Class Distribution -------------------- 100% | Mutant Dominant Class ---------------- Mutant | -10/Materials Mutant | -10/Subcaves Resources | -11 -10 -10 ----------- Run | Yrd Mat Sub Matter Collected 826 | 225 246 355 Remotely . | . . . Salvage Created 621 | . 292 329 Parts 48 | . 28 20 Haulers Intercepted 1 | . 1 . Recyclers Shooed . | . . . Parts Field Recycled . | . . . Retrieved Matter . | . . . Parts Self-Destructed 2 | . . 2 Prevented . | . . . Parts Restored . | . . . Kills | -11 -10 -10 ------- Run | Yrd Mat Sub Combat Hostiles Destroyed 25 | . 13 12 Melee 3 | . 3 . Guns 7 | . 1 6 AOE 15 | . 9 6 Classes Destroyed 8 | . 6 2 Worker 3 | . 3 . Builder 1 | . 1 . Hauler 1 | . 1 . Watcher 3 | . 3 . Swarmer 10 | . 9 1 Grunt 4 | . 4 . Sentry 1 | . . 1 Subdweller 10 | . . 10 Best Kill Streak 5 | . 5 3 Combat Bots Only 3 | . 3 3 Max Kills in Single Turn 3 | . 3 2 Gunslinging . | . . . Exploded 3 | . 3 1 Melee 1 | . 1 . Uniques/NPCs Destroyed . | . . . Combat | -11 -10 -10 -------- Run | Yrd Mat Sub Hostile Shots Fired 120 | . 51 69 Missed 31 | . 16 15 Hits 89 | . 35 54 Projectile 89 | . 35 54 Critical Strikes 3 | . 1 2 Damage Taken 1508 | . 370 1138 Core 260 | . 60 200 Absorbed by Shields . | . . . Regen/Repaired (Parts) 33 | . 33 . Core Remaining (%) 100 | 100 . . Volleys Fired 62 | . 35 27 Largest 2 | . 2 2 Hottest 50 | . 50 50 Shots Fired 99 | . 48 51 Gun 61 | . 35 26 Cannon 1 | . . 1 Launcher 37 | . 13 24 Special . | . . . Kinetic 62 | . 35 27 Thermal . | . . . Explosive 37 | . 13 24 Electromagnetic . | . . . Robot Hit Streak 13 | . 5 13 Robot Miss Streak 7 | . 7 1 Penetration Max . | . . . Secondary Targets . | . . . Shots Hit Robots 46 | . 15 31 Core Hits 48 | . 27 21 Critical Kills 2 | . 1 1 Critical Parts Destroyed . | . . . Critical Strikes 2 | . 1 1 Destroy 1 | . . 1 Smash 1 | . 1 . Melee Attacks 3 | . 3 . Impact 3 | . 3 . Slashing . | . . . Piercing . | . . . Sneak Attacks . | . . . Combat Hostiles . | . . . Follow-up Attacks . | . . . Damage Inflicted 2222 | . 1098 1124 Guns 363 | . 123 240 Cannons 19 | . . 19 Explosions 1727 | . 862 865 Melee 113 | . 113 . Ramming . | . . . Kinetic 382 | . 123 259 Thermal . | . . . Explosive 1727 | . 862 865 Electromagnetic . | . . . Impact 113 | . 113 . Slashing . | . . . Piercing . | . . . Highest Corruption . | . . . Average Corruption . | . . . Corruption Purged . | . . . Corruption Blocked . | . . . Overload Shots . | . . . Overflow Damage 59 | . 52 7 Projectiles . | . . . Explosions 27 | . 20 7 Melee 32 | . 32 . Knockbacks . | . . . Impact . | . . . Kinetic . | . . . Secondary . | . . . Self-Inflicted Damage 38 | . 38 . Shots 1 | . 1 . Rammed . | . . . Targets Rammed . | . . . Kicked . | . . . Crushed . | . . . Highest Temperature 259 | . 9 259 Average Temperature 49 | . 5 143 Received Heat Transfer 674 | . 78 596 Siege Activations . | . . . Martial Activations . | . . . Shielding Activations . | . . . Robots Disrupted . | . . . Combat Hostiles . | . . . Robots Corrupted . | . . . Combat Hostiles . | . . . Parts Fried 2 | . 2 . Impact Corruptions 1 | . 1 . Robots Melted . | . . . Combat Hostiles . | . . . Parts Melted . | . . . Heat Transferred . | . . . Parts Sabotaged . | . . . Parts Stolen . | . . . Parts Stripped . | . . . Power Chain Reactions . | . . . Alert | -11 -10 -10 ------- Run | Yrd Mat Sub Maximum Alert Level . | . . . Low Security (%) 100 | 100 100 . Level 1 . | . . . Level 2 . | . . . Level 3 . | . . . Level 4 . | . . . Level 5 . | . . . High Security . | . . . Max Security . | . . . Peak Influence 199 | . 199 . Initial . | . . . Average 25 | . 26 . Influence Increases 519 | . 479 40 Destroy 0b10 Robot/C 300 | . 260 40 Destroy 0b10 Robot/NC 40 | . 40 . Destroy Leader 48 | . 48 . Successful Hack 44 | . 44 . Disable Machine 30 | . 30 . Destroy Structure 57 | . 57 . Influence Decreases 519 | . 479 40 Time Decay 349 | . 319 30 Lost Part 20 | . 10 10 Purge Threat 150 | . 150 . Squads Dispatched 1 | . 1 . Investigation . | . . . Extermination . | . . . Reinforcement 1 | . 1 . Assault . | . . . Garrison . | . . . Intercept . | . . . Searches Triggered . | . . . Construction Impeded . | . . . Haulers Reinforced . | . . . Active Scanning Responses . | . . . Cargo Convoy Interrupts . | . . . Stealth | -11 -10 -10 --------- Run | Yrd Mat Sub Distress Signals 1 | . 1 . Communications Jammed . | . . . Distress Signals . | . . . Times Spotted 35 | . 19 16 Peak Tracking Total 4 | . 4 4 Tactical Retreats . | . . . Traps | -11 -10 -10 ------- Run | Yrd Mat Sub Traps Triggered . | . . . Indirectly . | . . . Trap Hack Attempts . | . . . Triggered . | . . . Disarmed . | . . . Reprogrammed . | . . . Reused . | . . . Traps Extracted . | . . . Installed . | . . . Triggered . | . . . Machines | -11 -10 -10 ---------- Run | Yrd Mat Sub Machines Disabled 2 | . 2 . Max in Single Turn 1 | . 1 . Machines Repaired . | . . . Machines Dismantled . | . . . Machines Sabotaged . | . . . Overloaded Fab Kills . | . . . Hacking | -11 -10 -10 --------- Run | Yrd Mat Sub Machines Accessed 10 | . 10 . Terminals 8 | . 8 . Fabricators . | . . . Repair Stations 1 | . 1 . Recycling Units 1 | . 1 . Scanalyzers . | . . . Garrison Access . | . . . Total Hacks 22 | . 22 . Successful 13 | . 13 . Failed 9 | . 9 . Catastrophic 3 | . 3 . Database Lockouts . | . . . Manual . | . . . Terminals 17 | . 17 . Fabricators . | . . . Repair Stations 2 | . 2 . Recycling Units 3 | . 3 . Scanalyzers . | . . . Garrison Access . | . . . Terminal Hacks 9 | . 9 . Robot Analysis 1 | . 1 . Prototype ID Bank 1 | . 1 . Emergency Access Points 1 | . 1 . Unreport Threat 1 | . 1 . Locate Traps 3 | . 3 . Registered Components 1 | . 1 . Zone Layout 1 | . 1 . Fabricator Hacks . | . . . Repair Station Hacks 2 | . 2 . Scan Component 1 | . 1 . Repair 1 | . 1 . Recycling Unit Hacks 2 | . 2 . Report Inventory 1 | . 1 . Retrieve Components 1 | . 1 . Scanalyzer . | . . . Garrison Access Hacks . | . . . Unauthorized Hacks . | . . . Terminals . | . . . Fabricators . | . . . Repair Stations . | . . . Recycling Units . | . . . Scanalyzers . | . . . Garrison Access . | . . . Data Cores Recovered . | . . . Used . | . . . Hacking Detections 5 | . 5 . Full Trace Events 1 | . 1 . Feedback Events . | . . . Feedback Blocked . | . . . Robot Schematics Acquired . | . . . Robots Built . | . . . Authchips . | . . . Time . | . . . Total Robot Build Rating . | . . . Part Schematics Acquired . | . . . Parts Built . | . . . Authchips . | . . . Time . | . . . Total Part Build Rating . | . . . Part Studies Acquired . | . . . Parts Repaired 1 | . 1 . Time 26 | . 26 . Parts Recycled . | . . . Recycled Matter . | . . . Retrieved Matter . | . . . Retrieved Components 9 | . 9 . Parts Scanalyzed . | . . . Part Schematics Acquired . | . . . Parts Damaged . | . . . Bothacking | -11 -10 -10 ------------ Run | Yrd Mat Sub Used RIF Installer . | . . . Robots Hacked . | . . . Non-combat . | . . . Combat . | . . . Robot Hacks Applied . | . . . Relay Couplers Released . | . . . Fabnet Peak Effective % . | . . . Robots Rewired . | . . . Allies Hacked . | . . . Hacks Repelled . | . . . Allies | -11 -10 -10 -------- Run | Yrd Mat Sub Total Allies . | . . . Largest Group . | . . . Highest-Rated Group . | . . . Highest-Rated Ally . | . . . Total Orders . | . . . Ally Attacks . | . . . Total Damage . | . . . Kills . | . . . Allies Corrupted . | . . . Allies Melted . | . . . Intel | -11 -10 -10 ------- Run | Yrd Mat Sub Active Infowar (turns) 806 | . . 806 Structural 806 | . . 806 Robot Analysis Total 1 | . 1 . Derelict Logs Recovered 1 | . . 1 Drone Launches . | . . . Drone Recoveries . | . . . Exploration | -11 -10 -10 ------------- Run | Yrd Mat Sub Turns Passed 2675 | 64 1367 1244 Spaces Moved 1295 | 42 649 604 Core 9 | 9 . . Treads . | . . . Legs 1286 | 33 649 604 Wheels . | . . . Hover . | . . . Flight . | . . . Fastest Speed 50 | 50 120 190 Average Speed 185 | 116 185 190 Slowest Speed 330 | 190 190 330 Overloaded Moves . | . . . Propulsion Burnouts . | . . . Robots Hopped . | . . . Potential Cave-ins . | . . . Cave-ins Triggered . | . . . Exploration Rate (%) 44 | 3 96 35 Regions Visited 2 Branch Regions 1 Pre-discovered Areas . | . . . Known Exits Taken . | . . . Unknown Exits Taken 2 | 1 1 . Scrap Searched 3 | . . 3 Spaces Dug . | . . . Terrain Destroyed 172 | . 68 104 Melee . | . . . Projectile . | . . . AOE 172 | . 68 104 Terrain Rammed . | . . . Walls Destroyed . | . . . Machines Disabled . | . . . Actions | -11 -10 -10 --------- Run | Yrd Mat Sub Total 1460 | 54 760 646 Wait 34 | . 32 2 Move 1293 | 41 648 604 Hop . | . . . Pick Up 27 | 7 17 3 Fast Attach 7 | 5 2 . Attach 6 | 1 2 3 Detach . | . . . Swap 12 | . 9 3 Drop 16 | . 12 4 Fire 62 | . 35 27 Melee 3 | . 3 . Ram . | . . . Kick . | . . . Crush . | . . . Escape Stasis . | . . . Rewire . | . . . Trap . | . . . Miscellaneous . | . . . Route ------- -11/Scrapyard -10/Materials (discovered 6 exits: [*Mat x3] / [*Min x2] / [*Sub]) -10/Subcaves (discovered 3 exits: [*Mat x2] / [*Scr]) History --------- Turn | Location | Event 8 | -11/Scrapyard | Discovered new exit (range 15) 65 | -11/Scrapyard | Entered Materials 90 | -10/Materials | Discovered new exit (range 14) 238 | -10/Materials | Discovered new exit (range 5) 300 | -10/Materials | Build established: Mutant 392 | -10/Materials | Discovered new exit (range 14) 415 | -10/Materials | Discovered new exit (range 16) 810 | -10/Materials | Discovered new exit (range 17) 1068 | -10/Materials | Repaired Grenade Launcher 1419 | -10/Materials | Discovered new exit (range 7) 1432 | -10/Materials | Entered Subcaves 1433 | -10/Subcaves | Approached by a straggling Scientist 1455 | -10/Subcaves | Learned Materials garrison access intel 1475 | -10/Subcaves | Discovered new exit (range 11) 1816 | -10/Subcaves | Discovered new exit (range 16) 1864 | -10/Subcaves | Ambushed by Subdweller buried in earth 1864 | -10/Subcaves | Ambushed by Subdweller buried in earth 1877 | -10/Subcaves | Core integrity fell below 50% 2430 | -10/Subcaves | Ambushed by Subdweller buried in earth 2552 | -10/Subcaves | A Subdweller sparked back to life 2552 | -10/Subcaves | A Subdweller sparked back to life 2613 | -10/Subcaves | Core integrity fell below 20% 2676 | -10/Subcaves | Destroyed by 24-AER(R) with Subdweller Laser Last Messages --------------- S-10 Pest destroyed. Flight Unit fries itself beyond repair. Y-45 Defender destroyed. XM-CQP(R): "ARGHSUB!" The unstable cave ceiling collapses. Lgt. Ion Engine destroyed. XM-CQP(R) destroyed. Lgt. Armor Plating fries itself beyond repair. The unstable cave ceiling collapses. Acquired 18 matter. The unstable cave ceiling collapses. 8B-YC6(R) creaks and sparks as it begins to move. 24-AER(R) creaks and sparks as it begins to move. Aluminum Leg destroyed. Critical hit (Meltdown: +290). Ion Engine destroyed. Lgt. Cannon destroyed. [Achievement: This Is Interesting...] Map ----- +----------------------------------------------------+ | ?????????????### ######## ######??????? | | ?????????????## ### #### ######??????? | | ?????????????## #### ##???????? | | ????????????### ### ###???????? | | ????????????### ### ### ## ########???? | | ????????????## ##### #### ##############???? | | ????????????## ########### ######## ##???? | | ????????????## ########### ##### ##???? | | ????????????## ####???## & ###???? | | ????????????### ####??## #######???? | | ????????????#### ####### #######????? | | ?????????????##### ####### ####????????? | | ??????????????##### #### ###?????????? | | ????????????????#### ###??????????? | | ?????????????????####### ######???????? | | ??????????????????###### #####???????? | | ?????????????####????### ## ##???????? | | ????????????######???## ## ##???????? | | ????????????### #######RR#### ##???????? | | ????????????## ######RR##### ##???????? | | ????????????## ##### ###???????? | | ????????????## ##### ## #####???????? | | ????????????### #### #########????????? | | ????????????### #############??????????? | | ????????????### #### #########??????????????? | | ????????????## ##### @##########?????????????? | | ????????????## ### # ###?????????????? | | ????????????#### ##### # #### ##?????????????? | | ????????????#### ####### ## "## ##?????????????? | | ?????????????## ##### ##" "# ##?????????????? | | ??????######### #### #" ?""# ##?????????????? | | ??????########## ## ##"" ## ###????????????? | | ??????##" " "### ### ##### ###????????????? | | ??????## "! ### # ### ##????????????? | | ?????????## = "## # ## ###????????????? | | ?????????##| "## # ### # ###????????????? | | ?????????##"] # # ###### # ###?????????????? | | ?????????#### ## ## ###### # ###????????????? | | ?????????### #" ## # ## # #######????????? | | ??????????## ## ## ############### | | ?????????### ### ## # > ##? # | | ?????????### #"" ### ##### ###?# # | | ?????????##" ###" ## ### #### ####?# # | | ???????####" "## ### #### ####### ### # | | ???????####!]"### ### ##### ######## # | | ???????##" "##### ## #### ######## # # | | ???????######## ### # ### #? | | ???????######## ### ## | | ?????????????## ## ### # | | ?????????????###### ## | +----------------------------------------------------+ Best States ------------- Heat Dissipation 25 Energy Generation 10 Energy Capacity 250 Matter Stores 269 Matter Capacity 300 Sight Range 16 Terrain Scan Density 10 Armor Coverage 225 Power Shielding 33 Evasion (%) 55 Item Schematics ----------------- None Robot Schematics ------------------ None Fabricated ------------ Nothing Repaired ---------- Grenade Launcher | 45% | -10/Materials Studied --------- None Alien Tech Used ----------------- None Achievements -------------- This Is Interesting... Challenges ------------ None Game ------ Seed ImpulseRegenerativeBarrier Manual? 0 Play Time 00:19:46 Cumulative 15.6 hours Start 2026.09.02 @ 21:27:04 End 2026.09.02 @ 21:47:36 Sessions 1 Manual Loads 0 Difficulty Rogue Special Mode None Game No. 31 Rogue 31 Adventurer 0 Explorer 0 Win Type - Total 0 Types 0/0/0/0/0/0/0/0/0/0 Lore% 25 Gallery% 16 Achievement% 15 Wizard Run 0 Options --------- Layout 1 ASCII 0 Keyboard 0 Movement Numpad Keybinds 0 Fullscreen 2 Font 24/X11 Map View 50x35 Zoom Use 0% Tactical HUD 0 Map Filters NONE Filters NONE Steam 1 RUN: ae1764ac-4c16-42b8-8252-5ccf338ef436